Cogmind - Beta 10.2 @@@ ROGUE MODE // 2021.02.24 @ 00:26:59 Player: Carcosa Result: Destroyed by S-10 Pest with Light Assault Rifle Performance ------------- Evolutions (1) 500 Regions Visited (2) 400 Robots Destroyed (5) 25 Value Destroyed (147) 147 Prototype IDs (0) 0 Alien Tech Used (0) 0 Bonus (0) 0 TOTAL SCORE: 1072 Bonus ------- None Cogmind --------- Core Integrity 0/400 Matter 300/300 Energy 100/100 System Corruption 3% Temperature Cool (0) Movement Core (300) Ox5 Location -9/Materials Parts ------- > --- POWER (1) -------- (None) > --- PROPULSION (3) --- (None) > --- UTILITY (3) ------ Large Storage Unit Seismic Analyzer > --- WEAPON (2) ------- Mini Grenade Launcher > --- INVENTORY (10) --- Ion Engine Light Treads Light Treads Aluminum Leg Medium Storage Unit Peak State ------------ > --- POWER ------------ Ion Engine > --- PROPULSION ------- Aluminum Leg Aluminum Leg Aluminum Leg > --- UTILITY ---------- Large Storage Unit Seismic Analyzer Light Armor Plating > --- WEAPON ----------- Small Laser Mini Grenade Launcher > --- INVENTORY -------- Ion Engine Light Treads Light Treads Aluminum Leg Aluminum Leg Medium Storage Unit [Rating: 10] Favorites ----------- Power Light Ion Engine Engine Light Ion Engine Propulsion Aluminum Leg Leg Aluminum Leg Wheel Wheel Utility Seismic Analyzer Storage Medium Storage Unit Processor Seismic Analyzer Protection Light Armor Plating Weapon Light Assault Rifle Energy Gun Medium Laser Ballistic Gun Light Assault Rifle Launcher Mini Grenade Launcher Build | -11 -10 -9 ------- Run | Scr Mat Mat Slots Evolved 2 | . . 2 Power . | . . . Propulsion 1 | . . 1 Utility 1 | . . 1 Weapon . | . . . Parts Attached 17 | 7 5 5 Power 2 | 1 1 . Engine 2 | 1 1 . Core . | . . . Reactor . | . . . Propulsion 5 | 3 . 2 Treads . | . . . Leg 4 | 2 . 2 Wheel 1 | 1 . . Hover . | . . . Flight . | . . . Utility 5 | 1 2 2 Device . | . . . Storage 3 | 1 1 1 Processor 1 | . 1 . Hackware . | . . . Protection 1 | . . 1 Artifact . | . . . Weapon 5 | 2 2 1 Energy Gun 3 | 1 2 . Energy Cannon . | . . . Ballistic Gun 1 | 1 . . Ballistic Cannon . | . . . Launcher 1 | . . 1 Special Weapon . | . . . Impact Weapon . | . . . Slashing Weapon . | . . . Piercing Weapon . | . . . Special Melee Weapon . | . . . Unidentified Prototypes . | . . . Parts Lost 11 | . 4 7 Power 2 | . 1 1 Propulsion 4 | . . 4 Utility 1 | . . 1 Weapon 4 | . 3 1 Highest Loss Streak 7 | . 2 7 Average Slot Usage (%) 89 | . 98 71 Engine 11 | . 14 6 Leg 26 | . 28 22 Storage 13 | . 14 11 Processor 12 | . 13 11 Protection 2 | . . 6 Energy Gun 10 | . 13 4 Ballistic Gun 9 | . 13 . Launcher 2 | . . 9 Naked Turns . | . . . Heaviest Build 26 | 10 15 26 Greatest Support 30 | 20 20 30 Greatest Overweight (x) 5 | . . 5 Average Overweight (x) . | . . . Largest Inventory Capacity 14 | 6 10 14 Average Capacity 8 | 5 7 10 Most Carried 8 | 4 8 7 Average Carried 6 | 3 7 5 Final Capacity 10 | 6 8 10 Final Carried 8 | 4 8 5 Class Distribution -------------------- 100% | Mutant Dominant Class ---------------- Mutant | -10/Materials Mutant | -9/Materials Resources | -11 -10 -9 ----------- Run | Scr Mat Mat Matter Collected 333 | 270 63 . Remotely . | . . . Salvage Created 152 | . 152 . Parts 12 | . 12 . Haulers Intercepted . | . . . Recyclers Shooed . | . . . Parts Field Recycled . | . . . Retrieved Matter . | . . . Parts Self-Destructed . | . . . Prevented . | . . . Kills | -11 -10 -9 ------- Run | Scr Mat Mat Combat Hostiles Destroyed 4 | . 4 . Guns 4 | . 4 . Classes Destroyed 2 | . 2 . Worker 1 | . 1 . Grunt 4 | . 4 . Best Kill Streak 2 | . 2 . Combat Bots Only 2 | . 2 . Max Kills in Single Turn 1 | . 1 . Gunslinging . | . . . Exploded . | . . . Melee . | . . . Uniques/NPCs Destroyed . | . . . Combat | -11 -10 -9 -------- Run | Scr Mat Mat Damage Taken 1463 | . 462 1001 Core 484 | . 84 400 Absorbed by Shields . | . . . Core Remaining (%) 83 | 100 66 . Volleys Fired 33 | . 31 2 Largest 2 | . 2 2 Hottest 70 | . 70 70 Shots Fired 66 | . 62 4 Gun 64 | . 62 2 Cannon . | . . . Launcher 2 | . . 2 Special . | . . . Kinetic 31 | . 31 . Thermal 33 | . 31 2 Explosive 2 | . . 2 Electromagnetic . | . . . Robot Hit Streak 13 | . 13 2 Robot Miss Streak 3 | . 3 1 Penetration Max . | . . . Secondary Targets . | . . . Shots Hit Robots 46 | . 44 2 Core Hits 16 | . 12 4 Critical Hits . | . . . Critical Kills . | . . . Critical Parts Destroyed . | . . . Melee Attacks . | . . . Impact . | . . . Slashing . | . . . Piercing . | . . . Sneak Attacks . | . . . Combat Hostiles . | . . . Follow-up Attacks . | . . . Damage Inflicted 522 | . 439 83 Guns 433 | . 433 . Cannons . | . . . Explosions 60 | . . 60 Melee . | . . . Ramming 29 | . 6 23 Kinetic 194 | . 194 . Thermal 239 | . 239 . Explosive 60 | . . 60 Electromagnetic . | . . . Impact . | . . . Slashing . | . . . Piercing . | . . . Highest Corruption 3 | . . 3 Average Corruption 2 | . . 2 Corruption Purged . | . . . Effects 1 | . . 1 Message Errors 1 | . . 1 Overload Shots . | . . . Overflow Damage 15 | . . 15 Projectiles . | . . . Explosions 15 | . . 15 Melee . | . . . Knockbacks . | . . . Impact . | . . . Kinetic . | . . . Secondary . | . . . Self-Inflicted Damage 87 | . 3 84 Shots 2 | . . 2 Rammed 16 | . 1 15 Targets Rammed 19 | . 1 18 Kicked 3 | . . 3 Crushed . | . . . Highest Temperature 173 | . 173 45 Average Temperature 65 | . 68 25 Received Heat Transfer 645 | . 261 384 Siege Activations . | . . . Robots Corrupted . | . . . Combat Hostiles . | . . . Parts Fried . | . . . Impact Corruptions . | . . . Robots Melted . | . . . Combat Hostiles . | . . . Parts Melted . | . . . Heat Transferred 668 | . 668 . Parts Sabotaged . | . . . Parts Stolen . | . . . Parts Stripped . | . . . Power Chain Reactions . | . . . Missiles Intercepted . | . . . Alert | -11 -10 -9 ------- Run | Scr Mat Mat Peak Influence 150 | . 150 74 Initial 54 | . . 54 Average 48 | . 59 43 Maximum Alert Level . | . . . Low Security (%) 100 | 100 100 100 Level 1 . | . . . Level 2 . | . . . Level 3 . | . . . Level 4 . | . . . Level 5 . | . . . High Security . | . . . Max Security . | . . . Squads Dispatched 4 | . 1 3 Investigation . | . . . Extermination . | . . . Reinforcement 4 | . 1 3 Assault . | . . . Garrison . | . . . Intercept . | . . . Construction Impeded . | . . . Haulers Reinforced . | . . . Stealth | -11 -10 -9 --------- Run | Scr Mat Mat Distress Signals 1 | . 1 . Communications Jammed . | . . . Distress Signals . | . . . Times Spotted 23 | . 12 11 Peak Tracking Total 8 | . 3 8 Tactical Retreats 3 | . 3 . Traps | -11 -10 -9 ------- Run | Scr Mat Mat Traps Triggered . | . . . Indirectly . | . . . Trap Hack Attempts . | . . . Triggered . | . . . Disarmed . | . . . Reprogrammed . | . . . Reused . | . . . Traps Extracted . | . . . Installed . | . . . Triggered . | . . . Machines | -11 -10 -9 ---------- Run | Scr Mat Mat Machines Disabled 1 | . . 1 Max in Single Turn 1 | . . 1 Machines Sabotaged . | . . . Garrisons Compromised . | . . . Overloaded Fab Kills . | . . . Fab Network Shutdowns . | . . . Hacking | -11 -10 -9 --------- Run | Scr Mat Mat Machines Accessed . | . . . Terminals . | . . . Fabricators . | . . . Repair Stations . | . . . Recycling Units . | . . . Scanalyzers . | . . . Garrison Access . | . . . Total Hacks . | . . . Successful . | . . . Failed . | . . . Catastrophic . | . . . Database Lockouts . | . . . Manual . | . . . Terminals . | . . . Fabricators . | . . . Repair Stations . | . . . Recycling Units . | . . . Scanalyzers . | . . . Garrison Access . | . . . Terminal Hacks . | . . . Fabricator Hacks . | . . . Repair Station Hacks . | . . . Recycling Unit Hacks . | . . . Scanalyzer . | . . . Garrison Access Hacks . | . . . Unauthorized Hacks . | . . . Terminals . | . . . Fabricators . | . . . Repair Stations . | . . . Recycling Units . | . . . Scanalyzers . | . . . Garrison Access . | . . . Data Cores Recovered . | . . . Used . | . . . Hacking Detections . | . . . Full Trace Events . | . . . Feedback Events . | . . . Feedback Blocked . | . . . Robot Schematics Acquired . | . . . Robots Built . | . . . Matter . | . . . Time . | . . . Total Robot Build Rating . | . . . Part Schematics Acquired . | . . . Parts Built . | . . . Matter . | . . . Time . | . . . Total Part Build Rating . | . . . Parts Repaired . | . . . Time . | . . . Parts Recycled . | . . . Recycled Matter . | . . . Retrieved Matter . | . . . Retrieved Components . | . . . Parts Scanalyzed . | . . . Part Schematics Acquired . | . . . Parts Damaged . | . . . Bothacking | -11 -10 -9 ------------ Run | Scr Mat Mat Used RIF Installer . | . . . Robots Hacked . | . . . Non-combat . | . . . Combat . | . . . Robot Hacks Applied . | . . . Relay Couplers Released . | . . . Robots Rewired . | . . . Allies Hacked . | . . . Hacks Repelled . | . . . Allies | -11 -10 -9 -------- Run | Scr Mat Mat Total Allies . | . . . Largest Group . | . . . Highest-Rated Group . | . . . Highest-Rated Ally . | . . . Total Orders . | . . . Ally Attacks . | . . . Total Damage . | . . . Kills . | . . . Allies Corrupted . | . . . Allies Melted . | . . . Intel | -11 -10 -9 ------- Run | Scr Mat Mat Robot Analysis Total . | . . . Derelict Logs Recovered . | . . . Drone Launches . | . . . Drone Recoveries . | . . . Exploration | -11 -10 -9 ------------- Run | Scr Mat Mat Turns Passed 622 | 62 377 183 Spaces Moved 369 | 48 219 102 Core 20 | 15 . 5 Treads . | . . . Legs 349 | 33 219 97 Wheels . | . . . Hover . | . . . Flight . | . . . Fastest Speed 50 | 50 120 120 Average Speed 119 | 98 120 128 Slowest Speed 300 | 120 120 300 Overloaded Moves . | . . . Propulsion Burnouts . | . . . Robots Hopped . | . . . Cave-ins Triggered . | . . . Exploration Rate (%) 14 | 3 28 11 Regions Visited 2 Branch Regions . Pre-discovered Areas . | . . . Known Exits Taken . | . . . Unknown Exits Taken 2 | 1 1 . Scrap Searched . | . . . Spaces Dug . | . . . Terrain Destroyed 16 | . . 16 Melee . | . . . Projectile . | . . . AOE 16 | . . 16 Terrain Rammed . | . . . Walls Destroyed . | . . . Machines Disabled . | . . . Actions | -11 -10 -9 --------- Run | Scr Mat Mat Total 467 | 61 277 129 Wait 12 | . 12 . Move 367 | 47 218 102 Hop . | . . . Pick Up 13 | 5 7 1 Fast Attach 9 | 6 3 . Attach 8 | 1 2 5 Detach 3 | 1 1 1 Swap . | . . . Drop 3 | 1 2 . Fire 33 | . 31 2 Melee . | . . . Ram 9 | . . 9 Kick 10 | . 1 9 Crush . | . . . Escape Stasis . | . . . Rewire . | . . . Trap . | . . . Miscellaneous . | . . . Route ------- -11/Scrapyard -10/Materials -9/Materials History --------- Turn | Location | Event 11 | -11/Scrapyard | Discovered new exit (range 15) 63 | -11/Scrapyard | Entered Materials 314 | -10/Materials | Build established: Mutant 378 | -10/Materials | Discovered new exit (range 16) 440 | -10/Materials | Entered another Materials area 440 | -9/Materials | Evolved 2 slots: Propulsion x1, Utility x1 586 | -9/Materials | Core integrity fell below 50% 605 | -9/Materials | Core integrity fell below 20% 611 | -9/Materials | Lost 7 parts (1p4n1u1w) 623 | -9/Materials | Destroyed by S-10 Pest with Light Assault Rifle Last Messages --------------- Slammed into G-34 Mercenary. Kicked G-34 Mercenary out of the way. Slammed into G-34 Mercenary. Kicked G-34 Mercenary out of the way. Aluminum Leg destroyed. Slammed into G-34 Mercenary. Aluminum Leg destroyed. Slammed into G-34 Mercenary. Destabilizing: System corrupted (+1). Slammed into G-34 Mercenary. Destabilizing: System interference. Seismic Analyzer temporarily disabled. Slammed into G-34 Mercenary. Destabilizing: System corrupted (+2). Slammed into G-34 Mercenary. ALERT: Hostiles spotted, dispatching reinforcements to Terminal M004. Slammed into G-34 Mercenary. U>MFF|EJB Slammed into G-34 Mercenary. Slammed into S-10 Pest. Map ----- +----------------------------------------------------+ | ????# #????## #????"????????????????????? | | ????##########????#^ ^#?????????????????????????? | | ??????????????????# ##+#?????????????????????????? | | ??????????????????# #????????????????????????????? | | ??????????????????# #????????????????????????????? | | ??????????????????# #????????????????????????????? | | ??????????????????# #????????????????????????????? | | ??????????????????# #????????????????????????????? | | ??????????????????# #????????????????????????????? | | ??????????????????# #?????? ????????????????????? | | ?????????????####?# #???? ""?????????????????????? | | ?????????????# # #?? ""?????????????????????? | | ?????????????# " # # "" """????????????????????? | | ?????????????# T / / "T +??????????????????? | | ?????????????# " # # "" #??????????????????? | | ?????????????# # # ???????????????????? | | ?????????????# /%##########???????????????????? | | ?????????????# #%# ???????????????????????? | | ?????????????# #%# """"?? #???????????????????? | | ?????????????# ?#%# """""g +???????????????????? | | ?????????????###??#%#b""""" #???????????????????? | | ?????????????######%# """"" #???????????????????? | | ?????????????+ %+ """"" #???????????????????? | | ?????????????######## """"" #???????????????????? | | ????????????????????#g""""" #???????????????????? | | ????????????????????# Yss@s #???????????????????? | | ????????????????????##########???????????????????? | | ?????????????????????????????????????????????????? | | ?????????????????????????????????????????????????? | | ?????????????????????????????????????????????????? | | ?????????????????????????????????????????????????? | | ?????????????????????????????????????????????????? | | ?????????????????????????????????????????????????? | | ?????????????????????????????????????????????????? | | ?????????????????????????????????????????????????? | | ?????????????????????????????????????????????????? | | ?????????????????????????????????????????????????? | | ?????????????????????????????????????????????????? | | ?????????????????????????????????????????????????? | | | | | | | | | | | | | | | | | | | | | | | +----------------------------------------------------+ Best States ------------- Heat Dissipation 28 Energy Generation 10 Energy Capacity 250 Matter Stores 300 Matter Capacity 300 Sight Range 16 Terrain Scan Density 60 Armor Coverage 150 Evasion (%) 50 Item Schematics ----------------- None Robot Schematics ------------------ None Fabricated ------------ Nothing Alien Tech Used ----------------- None Achievements -------------- None Challenges ------------ None Game ------ Seed AutogunHeatThrower Manual? 0 Play Time 00:09:01 Cumulative 53.5 hours Start 2021.02.24 @ 00:18:43 End 2021.02.24 @ 00:26:59 Sessions 1 Manual Loads 0 Difficulty Rogue Special Mode None Game No. 169 Rogue 169 Adventurer 0 Explorer 0 Win Type - Total 0 Types 0/0/0/0/0/0/0/0/0 Lore% 13 Gallery% 30 Achievement% 15 Wizard Run 0 Options --------- ASCII 1 Keyboard 1 Movement Numpad Keybinds 0 Fullscreen 1 Font 12/Terminus Map View 83x54 Tactical HUD 0 Map Filters NONE Filters NONE Steam 1 RUN: a4208464-6898-4f91-a37b-8173d89a5eb7